[Event "Klubbmästerskap 2025 Tisdag"]
[Site "Linköping, Sweden"]
[Date "2025.03.04"]
[Round "6.8"]
[White "Tonkin, Archie"]
[Black "Larsson, Elin"]
[Result "0-1"]
[TimeControl "90 min + 30 sec/move"]
[WhiteElo "1657"]
[BlackElo "1666"]

1. c4 {[%clk 01:30:48]} {[%emt 00:00:03]} e5 {[%clk 01:30:40]} {[%emt
00:00:29]} 2. Nc3 {[%clk 01:31:11]} {[%emt 00:00:08]} Nf6 {[%clk 01:30:23]}
{[%emt 00:00:46]} 3. e4 {[%clk 01:31:17]} {[%emt 00:00:22]} Bc5 {[%clk
01:25:15]} {[%emt 00:07:38]} 4. h3 {[%clk 01:31:27]} c6 {[%clk 01:15:56]}
{[%emt 00:08:10]} 5. d3 {[%clk 01:30:28]} {[%emt 00:01:29]} d5 {[%clk
01:07:25]} {[%emt 00:09:02]} 6. cxd5 {[%clk 01:27:16]} {[%emt 00:03:41]} cxd5
{[%clk 01:07:32]} {[%emt 00:00:23]} 7. exd5 {[%clk 01:26:03]} {[%emt 00:01:43]}
Nxd5 {[%clk 01:06:28]} {[%emt 00:01:35]} 8. Nxd5 {[%clk 01:23:53]} {[%emt
00:02:40]} Qxd5 {[%clk 01:06:34]} {[%emt 00:00:23]} 9. Be3 {[%clk 01:23:01]}
{[%emt 00:01:22]} Bb4+ {[%clk 00:57:44]} {[%emt 00:09:20]} 10. Bd2 {[%clk
01:23:20]} {[%emt 00:00:10]} Bxd2+ {[%clk 00:55:34]} {[%emt 00:02:41]} 11. Qxd2
{[%clk 01:23:38]} {[%emt 00:00:12]} O-O {[%clk 00:53:56]} {[%emt 00:02:07]} 12.
Ne2 {[%clk 01:19:29]} {[%emt 00:04:38]} Rd8 {[%clk 00:45:01]} {[%emt 00:09:26]}
13. Nc3 {[%clk 01:19:20]} {[%emt 00:00:39]} Qa5 {[%clk 00:41:35]} {[%emt
00:03:56]} 14. f3 {[%clk 01:16:08]} {[%emt 00:03:42]} Nc6 {[%clk 00:36:05]}
{[%emt 00:06:00]} 15. Rd1 {[%clk 01:08:16]} {[%emt 00:08:21]} Bf5 {[%clk
00:30:17]} {[%emt 00:06:19]} 16. a3 {[%clk 01:03:56]} {[%emt 00:04:50]} Nd4
{[%clk 00:22:26]} {[%emt 00:08:21]} 17. Ne4 {[%clk 01:03:03]} {[%emt 00:01:22]}
Qxd2+ {[%clk 00:21:04]} {[%emt 00:01:51]} 18. Rxd2 {[%clk 01:03:11]} {[%emt
00:00:22]} Rac8 {[%clk 00:17:15]} {[%emt 00:04:20]} 19. Nf2 {[%clk 00:58:09]}
{[%emt 00:05:31]} Nb3 {[%clk 00:12:37]} {[%emt 00:05:08]} 20. Rd1 {[%clk
00:57:30]} {[%emt 00:01:09]} Rc2 {[%clk 00:11:22]} {[%emt 00:01:46]} 21. g4
{[%clk 00:52:06]} {[%emt 00:05:54]} Be6 {[%clk 00:09:00]} {[%emt 00:02:53]} 22.
Ne4 {[%clk 00:48:46]} {[%emt 00:03:28]} Bd5 {[%clk 00:06:28]} {[%emt 00:03:24]}
23. Rb1 {[%clk 00:45:36]} {[%emt 00:03:40]} Nd4 {[%clk 00:02:48]} {[%emt
00:04:10]} 24. Nd2 {[%clk 00:42:42]} {[%emt 00:03:23]} Bxf3 {[%clk 00:01:42]}
{[%emt 00:01:37]} 25. Nxf3 {[%clk 00:41:55]} {[%emt 00:01:16]} Nxf3+ {[%clk
00:02:04]} {[%emt 00:00:08]} 26. Kd1 {[%clk 00:41:41]} {[%emt 00:00:43]} Rd2+
{[%clk 00:02:25]} {[%emt 00:00:09]} 0-1

[Event "Klubbmästerskap 2025 Tisdag"]
[Site "Linköping, Sweden"]
[Date "2025.03.04"]
[Round "6.10"]
[White "Giertz, Olov"]
[Black "Gällman, Joel"]
[Result "0-1"]
[TimeControl "90 min + 30 sec/move"]
[WhiteElo "1585"]
[BlackElo "1461"]

1. Nc3 {[%clk 01:30:57]} {[%emt 21:53:17]} e5 {[%clk 01:30:53]} 2. e4 {[%clk
01:31:19]} Bb4 {[%clk 01:30:40]} 3. a3 {[%clk 01:31:19]} Bxc3 {[%clk 01:30:27]}
4. dxc3 {[%clk 01:31:35]} Nf6 {[%clk 01:30:26]} 5. f3 {[%clk 01:31:51]} Nxe4
{[%clk 01:30:44]} 6. fxe4 {[%clk 01:32:08]} Qh4+ {[%clk 01:31:01]} 7. g3 {[%clk
01:32:19]} Qxe4+ {[%clk 01:31:22]} 8. Be2 {[%clk 01:31:05]} {[%emt 00:01:09]}
Qxh1 {[%clk 01:31:41]} {[%emt 00:00:12]} 9. Kd2 {[%clk 01:31:20]} {[%emt
00:00:15]} Qxh2 {[%clk 01:30:42]} {[%emt 00:01:28]} 10. Qe1 {[%clk 01:30:58]}
{[%emt 00:00:52]} O-O {[%clk 01:30:05]} {[%emt 00:01:07]} 11. Nf3 {[%clk
01:31:14]} {[%emt 00:00:13]} Qh6+ {[%clk 01:30:07]} {[%emt 00:00:28]} 12. Kd1
{[%clk 01:31:30]} {[%emt 00:00:15]} Qd6+ {[%clk 01:30:15]} {[%emt 00:00:22]} 13.
Bd2 {[%clk 01:29:39]} {[%emt 00:02:21]} e4 {[%clk 01:28:45]} {[%emt 00:02:00]}
14. Ng5 {[%clk 01:29:18]} {[%emt 00:00:51]} e3 {[%clk 01:28:38]} {[%emt
00:00:38]} 15. Bc4 {[%clk 01:29:36]} {[%emt 00:00:13]} Qxd2+ {[%clk 01:26:26]}
{[%emt 00:02:41]} 16. Qxd2 {[%clk 01:29:51]} {[%emt 00:00:14]} exd2 {[%clk
01:26:47]} {[%emt 00:00:10]} 17. Kxd2 {[%clk 01:30:14]} {[%emt 00:00:07]} h6
{[%clk 01:26:43]} {[%emt 00:00:19]} 18. Nxf7 {[%clk 01:30:43]} Rxf7 {[%clk
01:26:56]} {[%emt 00:00:32]} 19. Bxf7+ {[%clk 01:31:02]} {[%emt 00:00:11]} Kxf7
{[%clk 01:27:21]} {[%emt 00:00:05]} 20. Rf1+ {[%clk 01:31:19]} {[%emt
00:00:13]} Kg6 {[%clk 01:27:37]} {[%emt 00:00:14]} 21. Rf8 {[%clk 01:31:38]}
{[%emt 00:00:11]} Nc6 {[%clk 01:27:47]} {[%emt 00:00:21]} 22. b4 {[%clk
01:31:49]} {[%emt 00:00:19]} b5 {[%clk 01:27:58]} {[%emt 00:00:19]} 23. Rf4
{[%clk 01:31:18]} {[%emt 00:01:01]} a5 {[%clk 01:26:42]} {[%emt 00:01:45]} 24.
c4 {[%clk 01:31:27]} {[%emt 00:00:21]} axb4 {[%clk 01:26:28]} {[%emt 00:00:44]}
25. axb4 {[%clk 01:31:49]} {[%emt 00:00:08]} Ba6 {[%clk 01:26:00]} {[%emt
00:00:58]} 26. cxb5 {[%clk 01:31:58]} {[%emt 00:00:21]} Bxb5 {[%clk 01:26:20]}
{[%emt 00:00:09]} 27. c4 {[%clk 01:32:17]} {[%emt 00:00:11]} Ra2+ {[%clk
01:26:26]} {[%emt 00:00:24]} 28. Kd3 {[%clk 01:32:35]} {[%emt 00:00:12]} Nxb4+
{[%clk 01:26:44]} {[%emt 00:00:12]} 0-1